bitfinex/quotes_SOLUSD_20250928
["timestamp","ask_amount","ask_price","bid_price","bid_amount"]
[1759046674432,0.67,202.83,202.8,0.67]
[1759046675219,0.67,202.83,202.78,4.93127507]
[1759046675423,0.67,202.83,202.79,0.67]
[1759046675820,0.67,202.83,202.8,0.67]
[1759046676732,2.33936103,202.82,202.77,0.67]
[1759046676942,3.00936103,202.81,202.75,7.27149564]
[1759046677123,0.67,202.8,202.75,7.94149564]
[1759046677453,0.67,202.79,202.76,0.67]
[1759046677828,0.67,202.79,202.74,7.9417373]
[1759046678158,3.00936103,202.79,202.75,0.67]
[1759046679834,0.67,202.79,202.75,0.67]
[1759046680230,3.00936103,202.78,202.72,2.33936103]
[1759046680439,3.00936103,202.78,202.74,0.67]
[1759046680824,0.67,202.78,202.75,0.67]
[1759046681416,26.67,202.78,202.73,7.27194786]
[1759046681621,26.67,202.78,202.74,0.67]
[1759046682127,0.67,202.77,202.73,7.27194786]
[1759046682317,0.67,202.77,202.73,7.94194786]
[1759046682514,0.67,202.76,202.73,0.67]
[1759046682719,0.67,202.75,202.71,0.67]
[1759046683022,0.67,202.74,202.69,7.94297423]
[1759046683230,0.67,202.74,202.7,0.67]
[1759046684246,3.00936103,202.73,202.66,3.00936103]
[1759046684550,3.00936103,202.74,202.68,2.33936103]
[1759046684841,28.33936103,202.75,202.69,3.00936103]
[1759046685035,28.33936103,202.75,202.7,0.67]
[1759046685347,32.32901401,202.75,202.71,0.67]
[1759046686222,26.0,202.74,202.71,0.67]
[1759046686632,26.0,202.74,202.72,0.67]
[1759046687137,26.0,202.74,202.7,5.60332225]
[1759046687338,26.0,202.74,202.71,0.67]
[1759046688845,2.33936103,202.75,202.71,0.67]
[1759046689051,26.67,202.74,202.71,0.67]
[1759046689256,0.67,202.73,202.68,0.67]
[1759046689437,3.00936103,202.72,202.68,0.67]
[1759046689638,0.67,202.71,202.68,0.67]
[1759046690354,3.02936103,202.73,202.68,0.68]
[1759046690535,3.02936103,202.72,202.66,2.33936103]
[1759046690856,2.33936103,202.7,202.65,0.68]
[1759046691030,0.69,202.69,202.65,0.68]
[1759046691230,0.69,202.69,202.66,0.68]
[1759046691540,2.33936103,202.7,202.66,0.68]
[1759046691741,0.69,202.7,202.66,0.68]
[1759046692356,0.69,202.69,202.66,0.68]
[1759046692941,0.69,202.69,202.64,7.95422087]
[1759046693137,2.33936103,202.71,202.65,3.01936103]
[1759046693337,0.69,202.7,202.65,3.01936103]
[1759046693535,0.69,202.7,202.66,0.68]
[1759046694140,0.69,202.73,202.68,2.33936103]
[1759046694339,0.69,202.73,202.69,3.01936103]
[1759046694563,3.02936103,202.72,202.66,0.68]
[1759046694860,3.02936103,202.72,202.66,3.01936103]
[1759046695064,3.02936103,202.72,202.67,0.68]
[1759046695238,3.02936103,202.72,202.68,0.68]
[1759046696755,29.02936103,202.72,202.68,0.68]
[1759046700456,26.69,202.71,202.66,7.95369319]
[1759046700960,0.69,202.7,202.66,7.95369319]
[1759046701648,0.69,202.7,202.67,0.68]
[1759046705964,26.69,202.71,202.67,0.68]
[1759046706141,26.69,202.71,202.67,3.01936103]
[1759046707566,0.69,202.7,202.67,3.01936103]
[1759046707945,0.69,202.7,202.67,0.68]
[1759046708150,0.69,202.7,202.67,3.01936103]
[1759046708478,26.69,202.71,202.69,2.33936103]
[1759046710275,26.69,202.71,202.68,2.33936103]
[1759046711171,0.7,202.7,202.65,5.59460515]
[1759046711355,0.7,202.69,202.67,2.33936103]
[1759046711866,26.7,202.71,202.67,2.33936103]
[1759046712067,0.7,202.7,202.67,2.99936103]
[1759046712270,26.0,202.71,202.68,2.99936103]
[1759046712570,26.7,202.71,202.68,2.33936103]
[1759046713378,0.7,202.7,202.68,2.33936103]
[1759046713673,0.7,202.7,202.66,5.59429217]
[1759046713965,0.7,202.7,202.68,2.33936103]
[1759046715582,26.7,202.71,202.68,2.33936103]
[1759046716396,26.0,202.71,202.68,2.33936103]
[1759046716595,0.7,202.7,202.68,2.33936103]
[1759046717519,26.7,202.71,202.68,2.33936103]
[1759046717707,26.7,202.71,202.67,2.99936103]
[1759046719104,0.7,202.7,202.67,2.99936103]
[1759046719509,0.7,202.7,202.67,2.33936103]
[1759046719712,0.7,202.69,202.66,2.33936103]
[1759046720018,0.7,202.68,202.64,2.33936103]
[1759046720227,0.7,202.67,202.64,2.33936103]
[1759046720716,0.7,202.67,202.64,2.99936103]
[1759046721018,0.7,202.67,202.64,2.33936103]
[1759046721218,26.7,202.67,202.63,2.99936103]
[1759046721413,26.7,202.67,202.62,5.13524526]
[1759046721414,26.0,202.67,202.62,0.2]
[1759046721622,26.0,202.65,202.63,2.33936103]
[1759046722123,26.0,202.67,202.62,0.86]
[1759046722324,26.0,202.64,202.62,0.2]
[1759046722704,26.67,202.64,202.62,0.2]
[1759046723916,26.0,202.64,202.62,0.2]
[1759046724123,26.67,202.63,202.62,0.2]
[1759046725707,66.68936103,202.63,202.62,0.2]
[1759046725937,44.01386367,202.63,202.62,0.2]
[1759046726130,58.86501198,202.63,202.62,0.2]
[1759046726318,72.46060599,202.63,202.62,0.2]
[1759046727423,74.79996702,202.63,202.62,0.2]
[1759046727628,78.93177179,202.63,202.62,0.2]
[1759046728124,39.59559401,202.6,202.59,0.2]
[1759046728328,82.99945768,202.6,202.59,0.2]
[1759046728532,83.66945768,202.6,202.59,0.2]
[1759046728704,85.65068554,202.6,202.59,0.2]
[1759046730218,90.58651969,202.6,202.59,0.2]
[1759046735732,49.52201705,202.6,202.59,0.2]
[1759046735941,87.26201705,202.6,202.59,0.2]
[1759046736538,86.42396437,202.6,202.59,0.2]
[1759046739331,89.72861604,202.6,202.59,0.2]
[1759046740558,102.06820142,202.6,202.54,0.2]
[1759046740760,27.50130835,202.55,202.54,0.2]
[1759046740933,65.24130835,202.55,202.54,0.2]
[1759046741125,67.22263435,202.55,202.54,0.2]
[1759046742539,72.15968692,202.55,202.54,0.2]
[1759046742935,72.82968692,202.55,202.54,0.2]
[1759046743632,86.42528093,202.55,202.54,0.2]
[1759046747670,85.75528093,202.55,202.54,0.2]
[1759046747877,85.75528093,202.55,202.54,0.86]
[1759046748175,88.1311883,202.55,202.54,0.2]
[1759046748473,90.30249665,202.55,202.54,0.2]
[1759046748675,90.34249665,202.55,202.54,0.2]
[1759046749775,52.56249665,202.55,202.54,0.2]
[1759046749950,90.36249665,202.55,202.54,0.2]
[1759046750554,50.3911883,202.55,202.54,0.2]
[1759046750764,89.69249665,202.55,202.54,0.2]
[1759046752879,89.67249665,202.55,202.54,0.2]
[1759046753074,51.89249665,202.55,202.54,0.2]
[1759046753376,89.67249665,202.55,202.54,0.2]
[1759046757561,89.67249665,202.55,202.45,0.88]
[1759046757562,13.59559401,202.5,202.45,0.88]
[1759046757785,1.50130835,202.46,202.45,0.88]
[1759046758087,39.38130835,202.46,202.45,0.2]
[1759046758382,41.36351801,202.46,202.45,0.88]
[1759046758589,39.86220966,202.46,202.45,0.88]
[1759046758884,46.30276526,202.46,202.45,0.88]
[1759046761670,46.28276526,202.46,202.45,0.88]
[1759046766199,49.59653076,202.46,202.45,0.88]
[1759046766493,49.59653076,202.46,202.45,0.2]
[1759046767695,11.73653076,202.46,202.45,0.2]
[1759046767994,46.28276526,202.46,202.45,0.88]
[1759046768195,49.59653076,202.46,202.45,0.88]
[1759046769100,49.59653076,202.46,202.45,0.2]
[1759046777825,11.73653076,202.46,202.45,0.2]
[1759046778027,46.26276526,202.46,202.45,0.2]
[1759046778220,49.57653076,202.46,202.45,0.2]
[1759046790137,61.67081642,202.46,202.45,0.2]
[1759046790322,49.53653076,202.46,202.45,36.537255]
[1759046793647,43.07597516,202.46,202.45,37.207255]
[1759046793835,49.51653076,202.46,202.45,37.207255]
[1759046794238,49.53653076,202.46,202.45,37.207255]
[1759046794974,49.51653076,202.46,202.45,37.207255]
[1759046795248,11.73653076,202.46,202.45,37.207255]
[1759046795551,49.51653076,202.46,202.45,36.537255]
[1759046797743,49.51653076,202.46,202.45,37.207255]
[1759046798630,50.3638522,202.46,202.45,37.207255]
[1759046802261,54.49565697,202.46,202.45,37.207255]
[1759046803655,54.49565697,202.46,202.45,36.537255]
[1759046804450,16.71565697,202.46,202.45,36.537255]
[1759046804652,54.47565697,202.46,202.45,36.537255]
[1759046807352,50.3438522,202.46,202.45,36.537255]
[1759046807540,12.5838522,202.46,202.45,36.537255]
[1759046807742,50.3438522,202.46,202.45,36.537255]
[1759046808567,12.5838522,202.46,202.45,36.537255]
[1759046808769,50.3438522,202.46,202.45,36.537255]
[1759046809367,50.3438522,202.46,202.45,28.18177977]
[1759046810258,50.3438522,202.46,202.45,28.84177977]
[1759046810458,36.63759662,202.77,202.45,28.84177977]
[1759046810459,13.59559401,202.52,202.45,28.84177977]
[1759046810663,2.34862979,202.49,202.46,0.66]
[1759046810865,5.68406584,202.48,202.46,0.66]
[1759046811049,41.13543605,202.47,202.46,0.66]
[1759046813053,37.8,202.47,202.46,0.66]
[1759046813574,41.13340021,202.47,202.46,0.66]
[1759046815071,3.33340021,202.47,202.46,0.66]
[1759046815274,63.8,202.48,202.46,0.66]
[1759046815472,3.33340021,202.47,202.46,0.66]
[1759046815667,37.8,202.49,202.46,0.66]
[1759046816061,41.13227995,202.49,202.46,0.66]
[1759046816265,37.8,202.49,202.46,3.00862979]
[1759046816566,37.8,202.49,202.46,0.66]
[1759046816772,37.8,202.49,202.47,0.66]
[1759046817351,3.33143488,202.5,202.47,0.66]
[1759046817576,63.8,202.5,202.47,3.00862979]
[1759046817752,63.8,202.5,202.48,0.66]
[1759046821878,2.34862979,202.49,202.47,0.66]
[1759046822056,5.67676282,202.49,202.47,0.66]
[1759046822256,37.78,202.48,202.45,28.18177977]
[1759046822472,37.78,202.48,202.46,0.66]
[1759046822674,28.34862979,202.49,202.46,0.66]
[1759046822858,37.78,202.48,202.46,0.66]
[1759046823258,5.67618112,202.5,202.46,0.66]
[1759046823481,37.8,202.49,202.46,0.66]
[1759046823856,5.67618112,202.5,202.46,0.66]
[1759046823857,3.32755133,202.5,202.46,0.66]
[1759046824058,26.0,202.5,202.46,5.599238]
[1759046824258,37.78,202.49,202.47,0.66]
[1759046824474,26.0,202.51,202.47,0.66]
[1759046824781,37.78,202.5,202.47,0.66]
[1759046826884,37.8,202.51,202.47,0.66]
[1759046827062,41.12553571,202.51,202.47,0.66]
[1759046827759,28.34862979,202.52,202.47,7.94755559]
[1759046827958,63.8,202.51,202.48,3.00862979]
[1759046828160,26.0,202.51,202.49,0.66]
[1759046828363,28.34862979,202.52,202.49,0.66]
[1759046828582,37.78,202.52,202.49,0.66]
[1759046828781,43.45356528,202.52,202.5,0.66]
[1759046829154,43.45356528,202.52,202.48,0.66]
[1759046829360,37.78,202.51,202.49,0.66]
[1759046830785,3.00862979,202.51,202.47,0.68]
[1759046830959,40.12862979,202.51,202.47,0.68]
[1759046831278,0.66,202.5,202.47,0.68]
[1759046831589,3.00862979,202.5,202.47,0.68]
[1759046832084,37.78,202.51,202.45,35.46975149]
[1759046832263,2.34862979,202.51,202.48,0.68]
[1759046832490,37.78,202.5,202.48,0.68]
[1759046832669,37.78,202.5,202.49,0.68]
[1759046833183,2.34862979,202.51,202.49,0.68]
[1759046833382,37.78,202.51,202.49,0.68]
[1759046833774,37.78,202.51,202.5,0.68]
[1759046834165,37.78,202.51,202.48,0.68]
[1759046835286,37.78,202.51,202.47,4.9390033]
[1759046835472,37.78,202.51,202.49,0.68]
[1759046835671,26.0,202.53,202.5,0.68]
[1759046835983,6.33046799,202.57,202.51,2.34862979]
[1759046836169,3.00862979,202.57,202.52,0.68]
[1759046836484,37.8,202.56,202.52,0.68]
[1759046836690,37.8,202.56,202.51,7.28427154]
[1759046836996,38.46,202.56,202.52,0.68]
[1759046837363,38.46,202.56,202.52,5.61774545]
[1759046837565,26.0,202.57,202.53,3.02862979]
[1759046837790,63.8,202.58,202.54,3.02862979]
[1759046837975,63.8,202.58,202.55,0.68]
[1759046838587,26.0,202.59,202.56,0.68]
[1759046838770,26.66,202.59,202.55,3.02862979]
[1759046838965,37.8,202.58,202.55,3.02862979]
[1759046839468,37.8,202.58,202.55,0.68]
[1759046840287,0.66,202.57,202.53,2.34862979]
[1759046840498,0.66,202.57,202.53,7.98613478]
[1759046840672,0.66,202.57,202.53,7.28613478]
[1759046840872,37.8,202.58,202.54,0.7]
[1759046841080,38.5,202.58,202.54,0.7]
[1759046845393,0.7,202.57,202.53,2.34862979]
[1759046845696,0.7,202.57,202.53,3.04862979]
[1759046846094,0.7,202.56,202.52,14.69368442]
[1759046846277,2.34862979,202.54,202.49,0.7]
[1759046846483,0.7,202.53,202.49,0.7]
[1759046846689,0.7,202.53,202.49,2.34862979]
[1759046846876,0.7,202.53,202.5,0.7]
[1759046847294,66.12862979,202.55,202.5,0.7]
[1759046847473,0.7,202.54,202.5,0.7]
[1759046847996,2.34862979,202.53,202.5,0.7]
[1759046854905,0.7,202.54,202.5,0.7]
[1759046855087,2.34862979,202.54,202.51,0.7]
[1759046856585,3.04862979,202.54,202.51,0.7]
[1759046857401,2.34862979,202.54,202.52,0.7]
[1759046857587,66.10862979,202.55,202.52,0.7]
[1759046857782,26.0,202.56,202.52,0.7]
[1759046858505,2.34862979,202.54,202.5,0.7]
[1759046858697,3.04862979,202.54,202.5,0.7]
[1759046858879,3.04862979,202.54,202.51,0.7]
[1759046859082,3.04862979,202.54,202.5,12.2250976]
[1759046859083,2.34862979,202.54,202.5,12.2250976]
[1759046859296,2.34862979,202.54,202.52,0.7]
[1759046860104,2.34862979,202.54,202.51,0.7]
[1759046860708,2.20137854,202.54,202.51,0.7]
[1759046862607,1.50137854,202.54,202.5,12.2250976]
[1759046862807,1.50137854,202.54,202.51,0.7]
[1759046863504,2.20137854,202.54,202.51,0.7]
[1759046863812,1.50137854,202.54,202.51,0.7]
[1759046866015,2.20137854,202.54,202.51,0.7]
[1759046866907,1.50137854,202.54,202.51,0.7]
[1759046867883,1.50137854,202.54,202.5,12.2250976]
[1759046868084,1.50137854,202.54,202.51,0.7]
[1759046868817,1.50137854,202.54,202.5,12.2250976]
[1759046869114,1.50137854,202.54,202.51,0.7]
[1759046869612,2.20137854,202.54,202.51,0.7]
[1759046870713,2.20137854,202.54,202.46,0.69]
[1759046870714,27.50137854,202.52,202.46,0.69]
[1759046870915,1.50137854,202.48,202.45,28.18177977]
[1759046871087,30.01455581,202.51,202.45,28.18177977]
[1759046871088,1.50137854,202.46,202.45,28.18177977]
[1759046871294,2.19137854,202.46,202.45,28.18177977]
[1759046871589,28.19137854,202.46,202.45,28.18177977]
[1759046871824,65.28137854,202.46,202.45,28.18177977]
[1759046871993,27.50137854,202.46,202.45,28.18177977]
[1759046872195,69.36151175,202.46,202.45,28.18177977]
[1759046873409,27.50137854,202.46,202.45,28.87177977]
[1759046873605,65.34137854,202.46,202.45,28.87177977]
[1759046874024,27.50137854,202.46,202.45,28.87177977]
[1759046874343,27.50137854,202.46,202.45,28.18177977]
[1759046874643,27.50137854,202.46,202.45,28.87177977]
[1759046875334,27.50137854,202.46,202.45,28.18177977]
[1759046876518,65.34137854,202.46,202.45,28.18177977]
[1759046877039,66.03137854,202.46,202.45,28.18177977]
[1759046877242,65.34137854,202.46,202.45,28.18177977]
[1759046877735,65.32137854,202.46,202.45,28.18177977]
[1759046878346,66.01137854,202.46,202.45,28.18177977]
[1759046878841,66.03137854,202.46,202.45,28.18177977]
[1759046879338,70.97062579,202.46,202.45,28.18177977]
[1759046879635,66.01137854,202.46,202.45,28.18177977]
[1759046880025,27.50137854,202.46,202.45,28.18177977]
[1759046880638,65.34137854,202.46,202.45,28.18177977]
[1759046881313,1.50137854,202.46,202.45,28.18177977]
[1759046881510,39.34137854,202.46,202.45,28.18177977]
[1759046886936,1.50137854,202.46,202.45,28.87177977]
[1759046887239,39.34137854,202.48,202.45,28.87177977]
[1759046887534,1.50137854,202.51,202.46,0.69]
[1759046887743,26.0,202.49,202.46,0.69]
[1759046887937,1.50137854,202.5,202.46,0.69]
[1759046888243,1.50137854,202.48,202.46,0.69]
[1759046888432,1.50137854,202.47,202.45,28.18177977]
[1759046888638,1.50137854,202.46,202.45,28.18177977]
[1759046889452,2.19137854,202.46,202.45,28.18177977]
[1759046890235,1.50137854,202.46,202.45,28.18177977]
[1759046892339,28.21137854,202.46,202.45,28.18177977]
[1759046892554,71.01062579,202.46,202.45,28.18177977]
[1759046893126,74.33116869,202.46,202.45,28.18177977]
[1759046895063,87.9267627,202.46,202.45,28.18177977]
[1759046895259,1.50137854,202.45,202.44,0.2]
[1759046895450,30.82192144,202.45,202.44,0.2]
[1759046895660,69.41192144,202.45,202.44,0.2]
[1759046896373,84.62646378,202.45,202.44,0.2]
[1759046896783,87.94481295,202.45,202.44,0.2]
[1759046897975,86.44343441,202.45,202.44,0.2]
[1759046898181,87.94481295,202.45,202.44,0.2]
[1759046898663,50.06481295,202.45,202.44,0.2]
[1759046898981,87.94481295,202.45,202.44,0.2]
[1759046899352,36.46921894,202.45,202.44,0.2]
[1759046899546,71.03086977,202.45,202.44,0.2]
[1759046899752,74.34921894,202.45,202.44,0.2]
[1759046904475,73.63921894,202.45,202.44,0.2]
[1759046904667,35.75921894,202.45,202.44,0.9]
[1759046904873,65.36137854,202.45,202.44,0.9]
[1759046905081,68.67972771,202.45,202.44,0.9]
[1759046905454,65.36137854,202.45,202.44,0.9]
[1759046907378,68.67879792,202.45,202.44,0.9]
[1759046908074,68.67879792,202.45,202.44,0.2]
[1759046908264,35.75828915,202.45,202.44,0.2]
[1759046908462,70.32086977,202.45,202.44,0.2]
[1759046908665,73.63828915,202.45,202.44,0.2]
[1759046908864,74.33828915,202.45,202.44,0.2]
[1759046909454,73.63828915,202.45,202.44,0.2]
[1759046909754,74.33828915,202.45,202.44,0.2]
[1759046910650,73.63828915,202.45,202.44,0.2]
[1759046910855,74.33828915,202.45,202.44,0.2]
[1759046911579,73.63828915,202.45,202.44,0.2]
[1759046912570,74.33828915,202.45,202.44,0.2]
[1759046913098,73.63828915,202.45,202.44,0.2]
[1759046918675,74.33828915,202.45,202.44,0.2]
[1759046920595,75.18652921,202.45,202.44,0.2]
[1759046922613,74.48652921,202.45,202.44,0.2]
[1759046922773,36.60652921,202.45,202.44,0.9]
[1759046922976,29.31741938,202.45,202.44,0.9]
[1759046923175,69.50703798,202.45,202.44,0.9]
[1759046923401,31.66703798,202.45,202.44,0.9]
[1759046923697,69.52703798,202.45,202.44,0.9]
[1759046924602,31.66703798,202.45,202.44,0.9]
[1759046924970,69.52703798,202.45,202.44,0.9]
[1759046925788,3.31741938,202.45,202.44,0.9]
[1759046926095,2.3496186,202.46,202.44,0.9]
[1759046926285,67.17741938,202.45,202.44,0.2]
[1759046926892,67.17741938,202.45,202.44,0.9]
[1759046927298,69.52703798,202.45,202.44,0.9]
[1759046929291,31.66703798,202.45,202.44,0.9]
[1759046929498,40.2096186,202.45,202.44,0.9]
[1759046929712,43.52703798,202.45,202.44,0.9]
[1759046929896,5.66703798,202.45,202.44,0.9]
[1759046930114,43.52703798,202.45,202.44,0.9]
[1759046931112,3.31741938,202.45,202.44,0.9]
[1759046931311,2.3496186,202.46,202.44,5.83973523]
[1759046931510,43.52703798,202.47,202.45,0.66]
[1759046931709,40.2096186,202.47,202.45,0.66]
[1759046932203,43.53883572,202.47,202.45,0.66]
[1759046932393,37.86,202.47,202.45,0.66]
[1759046932590,41.18954362,202.47,202.45,0.66]
[1759046932915,37.86,202.47,202.45,0.66]
[1759046934415,0.67,202.52,202.45,5.59949027]
[1759046934416,26.0,202.5,202.45,5.59949027]
[1759046934714,3.32892482,202.49,202.46,0.66]
[1759046934917,37.84,202.48,202.46,0.66]
[1759046938120,37.84,202.48,202.46,5.59915017]
[1759046938309,2.3496186,202.51,202.47,0.66]
[1759046938508,41.16631664,202.5,202.47,0.66]
[1759046938911,2.3496186,202.51,202.47,0.66]
[1759046939110,37.84,202.5,202.47,0.66]
[1759046940805,37.84,202.5,202.48,0.66]
[1759046941202,5.67588199,202.51,202.48,0.66]
[1759046941409,40.1896186,202.5,202.48,0.66]
[1759046942922,37.84,202.5,202.49,0.66]
[1759046943227,37.82,202.51,202.49,0.66]
[1759046944235,37.82,202.51,202.48,0.66]
[1759046946822,2.3496186,202.53,202.48,5.59867188]
[1759046947015,37.82,202.52,202.48,4.93867188]
[1759046947220,37.82,202.52,202.49,0.66]
[1759046947824,26.0,202.56,202.5,0.66]
[1759046948031,0.67,202.58,202.5,3.0096186]
[1759046948032,2.3496186,202.57,202.5,3.0096186]
[1759046948235,37.84,202.56,202.51,0.66]
[1759046949044,37.84,202.56,202.52,4.93778392]
[1759046949224,37.84,202.56,202.53,0.66]
[1759046949419,3.0196186,202.59,202.54,0.66]
[1759046949730,37.84,202.58,202.55,0.66]
[1759046950129,38.56,202.58,202.55,0.66]
[1759046950339,37.84,202.58,202.55,0.66]
[1759046951019,3.0696186,202.62,202.56,0.69]
[1759046951219,37.88,202.61,202.56,0.69]
[1759046951630,38.6,202.61,202.56,0.69]
[1759046952242,38.6,202.61,202.57,4.93656513]
[1759046952442,37.88,202.61,202.58,0.69]
[1759046952649,37.88,202.62,202.59,0.69]
[1759046952839,37.88,202.62,202.6,0.69]
[1759046953033,26.0,202.64,202.6,0.69]
[1759046953236,26.0,202.64,202.61,0.69]
[1759046953550,29.0696186,202.64,202.59,0.69]
[1759046953744,26.72,202.64,202.6,0.69]
[1759046953924,26.0,202.63,202.6,0.69]
[1759046954129,66.9496186,202.64,202.6,0.69]
[1759046954441,66.2296186,202.64,202.6,0.69]
[1759046954644,0.72,202.63,202.6,0.69]
[1759046955155,63.88,202.64,202.6,5.62582144]
[1759046955353,66.2296186,202.64,202.61,0.69]
[1759046955925,2.3496186,202.62,202.58,4.93609225]
[1759046956132,2.3496186,202.6,202.57,4.93653726]
[1759046956339,2.3496186,202.6,202.57,5.62653726]
[1759046957343,3.0696186,202.61,202.57,5.62653726]
[1759046957551,40.2296186,202.62,202.56,4.93680884]
[1759046957853,40.9496186,202.62,202.58,0.69]
[1759046958359,40.2296186,202.62,202.58,0.69]
[1759046958542,0.72,202.61,202.58,0.69]
[1759046960267,40.9496186,202.62,202.58,0.69]
[1759046961043,40.2296186,202.62,202.58,0.69]
[1759046961362,3.0696186,202.61,202.54,7.28642744]
[1759046961561,3.0696186,202.61,202.54,0.67]
[1759046961562,2.3496186,202.59,202.54,0.67]
[1759046961950,0.72,202.58,202.54,0.67]
[1759046962356,3.0696186,202.59,202.55,0.67]
[1759046962662,3.0696186,202.59,202.56,0.67]
[1759046962663,2.3496186,202.59,202.56,0.67]
[1759046962847,3.0696186,202.6,202.56,0.67]
[1759046963053,40.9296186,202.6,202.56,0.67]
[1759046963254,40.9296186,202.6,202.56,5.60676358]
[1759046963871,40.9296186,202.6,202.56,0.67]
[1759046964079,0.72,202.59,202.53,2.3496186]
[1759046964278,3.0696186,202.59,202.54,0.67]
[1759046964779,2.3496186,202.59,202.54,0.67]
[1759046965270,3.0696186,202.6,202.54,3.0196186]
[1759046965471,3.0696186,202.6,202.55,5.60705257]
[1759046965773,3.0696186,202.6,202.56,0.67]
[1759046971686,40.1896186,202.61,202.56,5.60672655]
[1759046971868,2.3496186,202.62,202.57,0.67]
[1759046972178,40.1696186,202.62,202.57,0.67]
[1759046972776,37.82,202.62,202.57,0.67]
[1759046972953,38.54,202.62,202.58,4.93632145]
[1759046973155,38.54,202.62,202.58,5.60632145]
[1759046973881,64.54,202.64,202.59,3.0196186]
[1759046974067,64.54,202.64,202.6,0.67]
[1759046974378,38.54,202.64,202.6,0.67]
[1759046974564,38.54,202.64,202.61,0.67]
[1759046975195,38.54,202.64,202.6,4.93577104]
[1759046975384,26.0,202.63,202.6,5.60577104]
[1759046975575,0.72,202.63,202.58,4.93612088]
[1759046975872,0.72,202.62,202.58,5.60612088]
[1759046976565,2.3496186,202.61,202.58,5.60612088]
[1759046978583,2.3496186,202.59,202.55,5.60705257]
[1759046978766,2.3496186,202.58,202.56,0.67]
[1759046979076,2.3496186,202.59,202.56,0.67]
[1759046979283,2.3496186,202.6,202.57,0.67]
[1759046979685,2.3496186,202.6,202.58,0.67]
[1759046980059,2.3496186,202.61,202.58,0.67]
[1759046980261,2.3496186,202.6,202.58,0.67]
[1759046980460,2.3496186,202.61,202.59,0.67]
[1759046980686,2.3496186,202.61,202.6,0.67]
[1759046980977,2.3496186,202.62,202.6,0.67]
[1759046981679,2.3496186,202.62,202.61,0.67]
[1759046982584,1.50004393,202.62,202.61,0.67]
[1759046982768,1.50004393,202.63,202.61,5.6055322]
[1759046985561,26.72,202.65,202.61,5.6055322]
[1759046985761,1.50004393,202.62,202.61,5.6055322]
[1759046987177,1.50004393,202.62,202.58,12.34080363]
[1759046987377,1.50004393,202.62,202.59,0.67]
[1759046988501,1.50004393,202.62,202.6,4.93583415]
[1759046988797,1.50004393,202.62,202.6,5.60583415]
[1759046989807,1.50004393,202.62,202.61,0.67]
[1759046990490,30.04067947,202.65,202.61,0.67]
[1759046990491,1.50004393,202.64,202.61,0.67]
[1759046990672,1.50004393,202.63,202.61,0.67]
[1759046990877,1.50004393,202.63,202.61,5.60548958]
[1759046991117,1.50004393,202.64,202.62,0.7]
[1759046991273,4.82585739,202.65,202.61,4.93548958]
[1759046991476,4.82585739,202.65,202.62,0.7]
[1759046991695,4.82585739,202.65,202.63,0.7]
[1759046991906,1.50004393,202.65,202.61,4.93548958]
[1759046992204,1.50004393,202.65,202.64,0.7]
[1759046992205,4.82585739,202.65,202.64,0.7]
[1759046993892,3.32581346,202.65,202.64,5.63485984]
[1759046994206,0.1,202.66,202.64,5.63485984]
[1759046994383,3.42831861,202.66,202.65,0.7]
[1759046994797,0.1,202.66,202.65,5.63461633]
[1759047001606,0.1,202.66,202.65,4.93461633]